[Event "22nd Ruzomberok Open 2019"]
[Site "Ruzomberok"]
[Date "2019.06.29"]
[Round "1.1"]
[White "Ucekajova, Veronika"]
[Black "Jablonicky, Martin"]
[Result "0-1"]
[ECO "B08"]
[WhiteElo "1836"]
[BlackElo "2378"]
[Annotator "NA"]
[PlyCount "110"]
[EventDate "2019.06.29"]
[EventType "swiss"]
[EventCountry "SVK"]
[SourceTitle "playchess.com"]
[Source "ChessBase"]
[SourceQuality "1"]
[TimeControl "40/5400+30:1800+30"]

1. e4 {[%emt 0:00:00]} g6 {[%emt 0:00:00]} 2. d4 {[%emt 0:00:23]} Bg7 {[%emt 0:00:04]} 3. Nf3 {[%emt 0:00:44]} d6 {[%emt 0:00:40]} 4. Nc3 {[%emt 0:01:33]} Nf6 {[%emt 0:00:13]} 5. Be2 {[%emt 0:01:28]} O-O {[%emt 0:00:08]} 6. O-O {[%emt 0:00:17]} Nc6 {[%emt 0:00:49]} 7. h3 {[%emt 0:01:43]} e5 {[%emt 0:00:46]} 8. dxe5 {[%emt 0:02:16]} dxe5 {[%emt 0:00:50]} 9. Bg5 {[%emt 0:05:16]} Be6 {[%emt 0:01:38]} 10. Nd2 {[%emt 0:24:56]} Nd4 {[%emt 0:01:53]} 11. Bc4 {[%emt 0:01:17]} c6 {[%emt 0:01:23]} 12. Ne2 {[%emt 0:12:11]} Bxc4 {[%emt 0:17:26]} 13. Nxc4 {[%emt 0:02:43]} Ne6 {[%emt 0:00:05]} 14. Bxf6 {[%emt 0:07:27]} Qxf6 {[%emt 0:01:55]} 15. c3 {[%emt 0:01:51]} Qh4 {[%emt 0:06:31]} 16. Ng3 {[%emt 0:03:35]} Rad8 {[%emt 0:03:05]} 17. Qc2 {[%emt 0:05:18]} f5 {[%emt 0:02:35]} 18. exf5 {[%emt 0:03:37]} gxf5 {[%emt 0:00:06]} 19. Qb3 {[%emt 0:02:52]} Nc5 {[%emt 0:02:43]} 20. Qb4 {[%emt 0:02:01]} Nd3 {[%emt 0:00:12]} 21. Qb3 {[%emt 0:01:02]} Kh8 {[%emt 0:00:05]} 22. Ne3 {[%emt 0:02:33]} Qg5 {[%emt 0:15:31]} 23. Ngxf5 {[%emt 0:03:50]} Rxf5 {[%emt 0:00:44]} 24. Nxf5 {[%emt 0:00:09]} Qxf5 {[%emt 0:00:06]} 25. Qxb7 {[%emt 0:00:36]} Qg6 {[%emt 0:03:05]} 26. Rad1 {[%emt 0:01:54]} Rg8 {[%emt 0:00:24]} 27. Qd7 {[%emt 0:02:15]} Bh6 {[%emt 0:18:29]} 28. Qg4 {[%emt 0:00:40]} Qf6 {[%emt 0:01:06]} 29. Rxd3 {[%emt 0:03:29]} Rxg4 {[%emt 0:00:23]} 30. hxg4 {[%emt 0:00:01]} e4 {[%emt 0:00:32]} 31. Rd7 {[%emt 0:00:50]} e3 {[%emt 0:00:20]} 32. Rd3 {[%emt 0:02:13]} Qe6 {[%emt 0:01:20]} 33. fxe3 {[%emt 0:01:20]} Bxe3+ {[%emt 0:01:18]} 34. Kh2 {[%emt 0:00:01]} Qh6+ {[%emt 0:04:19]} 35. Kg3 {[%emt 0:00:06]} Bb6 {[%emt 0:00:19]} 36. Rdf3 {[%emt 0:01:06]} Qd6+ {[%emt 0:03:46]} 37. Kh3 {[%emt 0:00:04]} Qh6+ {[%emt 0:00:58]} 38. Kg3 {[%emt 0:00:06]} Bc7+ {[%emt 0:00:06]} 39. Kf2 {[%emt 0:00:21]} Qd2+ {[%emt 0:00:58]} 40. Kg1 {[%emt 0:00:02]} Bd6 {[%emt 0:02:27]} 41. Rf6 {[%emt 0:07:00]} Qe3+ {[%emt 0:00:22]} 42. Kh1 {[%emt 0:00:17]} Qg3 {[%emt 0:01:13]} 43. Rh6 {[%emt 0:00:08]} Kg7 {[%emt 0:00:58]} 44. Rh3 {[%emt 0:01:08]} Qxg4 {[%emt 0:00:19]} 45. Rff3 {[%emt 0:01:17]} h5 {[%emt 0:05:41]} 46. Kg1 {[%emt 0:04:19]} h4 {[%emt 0:01:02]} 47. Kf2 {[%emt 0:02:01]} Qe4 {[%emt 0:00:13]} 48. Rd3 {[%emt 0:02:15]} Bc5+ {[%emt 0:07:11]} 49. Kf1 {[%emt 0:02:01]} Qf4+ {[%emt 0:00:05]} 50. Rhf3 {[%emt 0:01:22]} Qh2 {[%emt 0:00:11]} 51. Rd7+ {[%emt 0:05:16]} Kg6 {[%emt 0:01:55]} 52. Rdf7 {[%emt 0:00:43]} Qg1+ {[%emt 0:01:17]} 53. Ke2 {[%emt 0:00:06]} Qxg2+ {[%emt 0:00:21]} 54. Kd3 {[%emt 0:00:08]} Qg5 {[%emt 0:00:36]} 55. Kc2 {[%emt 0:01:17]} h3 {[%emt 0:00:27]} 0-1

[Event "22nd Ruzomberok Open 2019"]
[Site "Ruzomberok"]
[Date "2019.06.29"]
[Round "1.2"]
[White "Farkas, Gabor"]
[Black "Mocary, Metod"]
[Result "1-0"]
[ECO "B07"]
[WhiteElo "2353"]
[BlackElo "1830"]
[Annotator "NA"]
[PlyCount "63"]
[EventDate "2019.06.29"]
[EventType "swiss"]
[EventCountry "SVK"]
[SourceTitle "playchess.com"]
[Source "ChessBase"]
[SourceQuality "1"]
[TimeControl "40/5400+30:1800+30"]

1. e4 {[%emt 0:00:00]} d6 {[%emt 0:00:13]} 2. d4 {[%emt 0:00:00]} Nf6 {[%emt 0:00:18]} 3. Nc3 {[%emt 0:00:00]} g6 {[%emt 0:00:23]} 4. h3 {[%emt 0:00:00]} Bg7 {[%emt 0:00:23]} 5. Be3 {[%emt 0:00:17]} c6 {[%emt 0:04:28]} 6. Qd2 {[%emt 0:01:13]} O-O {[%emt 0:03:05]} 7. Nf3 {[%emt 0:01:21]} b5 {[%emt 0:01:31]} 8. a3 {[%emt 0:00:12]} Bb7 {[%emt 0:02:01]} 9. Bh6 {[%emt 0:04:30]} a5 {[%emt 0:07:08]} 10. Bxg7 {[%emt 0:06:07]} Kxg7 {[%emt 0:00:12]} 11. Bd3 {[%emt 0:04:06]} Nbd7 {[%emt 0:11:31]} 12. e5 {[%emt 0:03:01]} Ne8 {[%emt 0:06:16]} 13. h4 {[%emt 0:01:05]} h5 {[%emt 0:05:14]} 14. e6 {[%emt 0:01:39]} fxe6 {[%emt 0:06:12]} 15. Bxg6 {[%emt 0:01:22]} Rf6 {[%emt 0:12:04]} 16. Bxh5 {[%emt 0:00:18]} Rf5 {[%emt 0:04:45]} 17. Bg4 {[%emt 0:00:53]} Nef6 {[%emt 0:06:13]} 18. Bxf5 {[%emt 0:00:21]} exf5 {[%emt 0:00:11]} 19. Qg5+ {[%emt 0:00:12]} Kf7 {[%emt 0:04:29]} 20. Qxf5 {[%emt 0:00:26]} Nf8 {[%emt 0:06:02]} 21. Ng5+ {[%emt 0:01:11]} Ke8 {[%emt 0:00:11]} 22. h5 {[%emt 0:00:41]} b4 {[%emt 0:05:07]} 23. axb4 {[%emt 0:00:15]} axb4 {[%emt 0:00:05]} 24. Rxa8 {[%emt 0:00:46]} Qxa8 {[%emt 0:00:16]} 25. Nd1 {[%emt 0:00:23]} c5 {[%emt 0:00:30]} 26. h6 {[%emt 0:02:45]} b3 {[%emt 0:05:41]} 27. h7 {[%emt 0:01:19]} bxc2 {[%emt 0:00:23]} 28. Qxc2 {[%emt 0:00:22]} Bxg2 {[%emt 0:03:53]} 29. h8=Q {[%emt 0:00:57]} Bxh1 {[%emt 0:00:40]} 30. Qg6+ {[%emt 0:01:45]} Kd7 {[%emt 0:00:45]} 31. Qf5+ {[%emt 0:00:06]} Kc7 {[%emt 0:01:12]} 32. Ne6+ {[%emt 0:00:09]} 1-0

[Event "22nd Ruzomberok Open 2019"]
[Site "Ruzomberok"]
[Date "2019.06.29"]
[Round "1.3"]
[White "Bartanus, Stanislav"]
[Black "Vojtek, Vladimir"]
[Result "0-1"]
[ECO "A22"]
[WhiteElo "1781"]
[BlackElo "2313"]
[Annotator "NA"]
[PlyCount "126"]
[EventDate "2019.06.29"]
[EventType "swiss"]
[EventCountry "SVK"]
[SourceTitle "playchess.com"]
[Source "ChessBase"]
[SourceQuality "1"]
[TimeControl "40/5400+30:1800+30"]

1. c4 {[%emt 0:00:00]} e5 {[%emt 0:00:00]} 2. Nc3 {[%emt 0:00:00]} Nf6 {[%emt 0:00:00]} 3. g3 {[%emt 0:00:29]} c6 {[%emt 0:00:47]} 4. Bg2 {[%emt 0:00:28]} Na6 {[%emt 0:01:01]} 5. d3 {[%emt 0:01:54]} Be7 {[%emt 0:03:37]} 6. Nf3 {[%emt 0:03:26]} Qc7 {[%emt 0:00:54]} 7. O-O {[%emt 0:02:38]} O-O {[%emt 0:00:18]} 8. a3 {[%emt 0:04:44]} Nc5 {[%emt 0:14:09]} 9. b4 {[%emt 0:04:28]} Ne6 {[%emt 0:00:09]} 10. Bb2 {[%emt 0:00:07]} a5 {[%emt 0:09:04]} 11. b5 {[%emt 0:05:20]} d6 {[%emt 0:03:08]} 12. Rc1 {[%emt 0:03:51]} Bd7 {[%emt 0:01:13]} 13. a4 {[%emt 0:01:34]} Rad8 {[%emt 0:04:36]} 14. Qc2 {[%emt 0:02:24]} Rfe8 {[%emt 0:03:51]} 15. Rfd1 {[%emt 0:02:50]} Qb6 {[%emt 0:07:39]} 16. e3 {[%emt 0:11:07]} Bf8 {[%emt 0:07:16]} 17. d4 {[%emt 0:05:43]} Qc7 {[%emt 0:12:26]} 18. dxe5 {[%emt 0:04:19]} dxe5 {[%emt 0:00:33]} 19. Ne4 {[%emt 0:01:45]} Nxe4 {[%emt 0:02:32]} 20. Qxe4 {[%emt 0:00:39]} f6 {[%emt 0:02:22]} 21. Qc2 {[%emt 0:05:00]} Nc5 {[%emt 0:03:25]} 22. Ba3 {[%emt 0:03:13]} Bg4 {[%emt 0:04:07]} 23. Rxd8 {[%emt 0:00:57]} Rxd8 {[%emt 0:00:54]} 24. Bxc5 {[%emt 0:00:26]} Bxc5 {[%emt 0:01:16]} 25. Qe4 {[%emt 0:03:19]} Qd7 {[%emt 0:03:45]} 26. Qc2 {[%emt 0:05:51]} Bb4 {[%emt 0:04:00]} 27. bxc6 {[%emt 0:01:43]} bxc6 {[%emt 0:00:04]} 28. h3 {[%emt 0:03:31]} Bf5 {[%emt 0:02:32]} 29. Qb3 {[%emt 0:03:17]} Be6 {[%emt 0:03:46]} 30. g4 {[%emt 0:00:32]} Qd3 {[%emt 0:01:32]} 31. Qxd3 {[%emt 0:00:39]} Rxd3 {[%emt 0:00:01]} 32. Ne1 {[%emt 0:01:04]} Rc3 {[%emt 0:01:24]} 33. Rxc3 {[%emt 0:00:43]} Bxc3 {[%emt 0:00:01]} 34. Nc2 {[%emt 0:01:32]} Bxc4 {[%emt 0:00:31]} 35. Bxc6 {[%emt 0:00:13]} Kf7 {[%emt 0:01:08]} 36. Na3 {[%emt 0:02:42]} Bd3 {[%emt 0:00:54]} 37. Nb5 {[%emt 0:02:03]} Bb4 {[%emt 0:00:24]} 38. Nc7 {[%emt 0:02:25]} Ke7 {[%emt 0:01:26]} 39. Bb5 {[%emt 0:03:02]} Be4 {[%emt 0:01:20]} 40. Kf1 {[%emt 0:00:40]} g6 {[%emt 0:00:43]} 41. Bc4 {[%emt 0:31:24]} f5 {[%emt 0:31:06]} 42. g5 {[%emt 0:02:13]} Bc2 {[%emt 0:00:00]} 43. Bb5 {[%emt 0:00:00]} Bb3 {[%emt 0:00:00]} 44. Ke2 {[%emt 0:00:00]} e4 {[%emt 0:00:00]} 45. Na6 {[%emt 0:00:00]} Bd6 {[%emt 0:00:00]} 46. Kd2 {[%emt 0:00:00]} Be6 {[%emt 0:00:00]} 47. Kc3 {[%emt 0:00:00]} Be5+ {[%emt 0:00:00]} 48. Kd2 {[%emt 0:00:00]} Bd6 {[%emt 0:00:00]} 49. Kc3 {[%emt 0:00:00]} Bh2 {[%emt 0:00:00]} 50. Kd2 {[%emt 0:00:00]} Kd6 {[%emt 0:00:29]} 51. h4 {[%emt 0:00:00]} Kd5 {[%emt 0:00:47]} 52. Ke2 {[%emt 0:00:00]} Bd6 {[%emt 0:00:24]} 53. f4 {[%emt 0:00:00]} exf3+ {[%emt 0:00:33]} 54. Kxf3 {[%emt 0:00:00]} Bc8 {[%emt 0:00:27]} 55. Ke2 {[%emt 0:00:00]} Bb7 {[%emt 0:01:16]} 56. Kd3 {[%emt 0:00:00]} Ke5 {[%emt 0:01:21]} 57. Bc4 {[%emt 0:00:00]} Bg2 58. Bg8 {[%emt 0:00:00]} Bf1+ {[%emt 0:00:59]} 59. Kc3 {[%emt 0:00:00]} Bxa6 {[%emt 0:00:17]} 60. Bxh7 {[%emt 0:00:00]} Bb4+ {[%emt 0:00:33]} 61. Kc2 {[%emt 0:00:00]} Be1 {[%emt 0:00:30]} 62. h5 {[%emt 0:00:00]} gxh5 {[%emt 0:00:11]} 63. e4 {[%emt 0:00:00]} fxe4 {[%emt 0:00:18]} 0-1

[Event "22nd Ruzomberok Open 2019"]
[Site "Ruzomberok"]
[Date "2019.06.29"]
[Round "1.4"]
[White "Zvarik, Martin"]
[Black "Kapicakova, Lucia"]
[Result "1-0"]
[ECO "A05"]
[WhiteElo "2308"]
[BlackElo "1776"]
[Annotator "NA"]
[PlyCount "79"]
[EventDate "2019.06.29"]
[EventType "swiss"]
[EventCountry "SVK"]
[SourceTitle "playchess.com"]
[Source "ChessBase"]
[SourceQuality "1"]
[TimeControl "40/5400+30:1800+30"]

1. Nf3 {[%emt 0:00:04]} Nf6 {[%emt 0:00:00]} 2. g3 {[%emt 0:00:26]} g6 {[%emt 0:00:00]} 3. Bg2 {[%emt 0:00:06]} Bg7 {[%emt 0:00:00]} 4. d4 {[%emt 0:00:19]} d6 {[%emt 0:00:24]} 5. O-O {[%emt 0:00:17]} O-O {[%emt 0:00:21]} 6. b3 {[%emt 0:01:41]} Nbd7 {[%emt 0:01:30]} 7. Bb2 {[%emt 0:00:11]} c5 {[%emt 0:04:38]} 8. c4 {[%emt 0:00:34]} cxd4 {[%emt 0:03:01]} 9. Nxd4 {[%emt 0:07:01]} a6 {[%emt 0:14:15]} 10. Nc3 {[%emt 0:01:23]} Qc7 {[%emt 0:04:10]} 11. Rc1 {[%emt 0:01:07]} Nb6 {[%emt 0:06:01]} 12. Rc2 {[%emt 0:05:28]} Bd7 {[%emt 0:05:22]} 13. Rd2 {[%emt 0:04:27]} Rad8 {[%emt 0:02:44]} 14. e4 {[%emt 0:03:25]} Qc8 {[%emt 0:07:04]} 15. Re1 {[%emt 0:01:03]} Bh3 {[%emt 0:08:06]} 16. Nc2 {[%emt 0:04:05]} Bxg2 {[%emt 0:05:13]} 17. Kxg2 {[%emt 0:00:09]} Rd7 {[%emt 0:01:58]} 18. Ne3 {[%emt 0:00:53]} Rfd8 {[%emt 0:02:17]} 19. Qa1 {[%emt 0:08:45]} Qc5 {[%emt 0:04:05]} 20. f3 {[%emt 0:05:59]} Bh6 {[%emt 0:04:46]} 21. Ncd1 {[%emt 0:01:33]} Ne8 {[%emt 0:03:36]} 22. Rde2 {[%emt 0:02:43]} Bg7 {[%emt 0:02:53]} 23. Nf2 {[%emt 0:01:30]} Bxb2 {[%emt 0:01:44]} 24. Qxb2 {[%emt 0:00:11]} e6 {[%emt 0:03:26]} 25. Nd3 {[%emt 0:01:40]} Qc7 {[%emt 0:02:49]} 26. Ng4 {[%emt 0:04:20]} e5 {[%emt 0:04:55]} 27. c5 {[%emt 0:03:47]} dxc5 {[%emt 0:02:03]} 28. Ndxe5 {[%emt 0:00:06]} Re7 {[%emt 0:01:15]} 29. Nc6 {[%emt 0:02:23]} h5 {[%emt 0:02:49]} 30. Nxe7+ {[%emt 0:00:13]} Qxe7 {[%emt 0:00:18]} 31. Ne3 {[%emt 0:00:05]} Rd4 {[%emt 0:01:50]} 32. Rd2 {[%emt 0:00:19]} Qd7 {[%emt 0:00:57]} 33. Red1 {[%emt 0:00:09]} Rxd2+ {[%emt 0:00:54]} 34. Qxd2 {[%emt 0:00:03]} Qxd2+ {[%emt 0:00:54]} 35. Rxd2 {[%emt 0:00:05]} Nc7 {[%emt 0:00:39]} 36. Rd6 {[%emt 0:00:38]} Nba8 {[%emt 0:00:28]} 37. Rd8+ {[%emt 0:00:38]} Kg7 {[%emt 0:00:11]} 38. Nd5 {[%emt 0:00:36]} b5 {[%emt 0:00:34]} 39. Rc8 {[%emt 0:00:47]} Nxd5 {[%emt 0:00:34]} 40. exd5 {[%emt 0:00:07]} 1-0

[Event "22nd Ruzomberok Open 2019"]
[Site "Ruzomberok"]
[Date "2019.06.29"]
[Round "1.6"]
[White "Jakab, Bela"]
[Black "Gasper, Jaroslav"]
[Result "1-0"]
[ECO "C42"]
[WhiteElo "2278"]
[BlackElo "1772"]
[Annotator "NA"]
[PlyCount "35"]
[EventDate "2019.06.29"]
[EventType "swiss"]
[EventCountry "SVK"]
[SourceTitle "playchess.com"]
[Source "ChessBase"]
[SourceQuality "1"]
[TimeControl "40/5400+30:1800+30"]

1. e4 {[%emt 0:00:00]} e5 {[%emt 0:00:00]} 2. Nf3 {[%emt 0:00:00]} Nf6 {[%emt 0:00:00]} 3. Nxe5 {[%emt 0:00:00]} Qe7 {[%emt 0:00:00]} 4. d4 {[%emt 0:01:03]} d6 {[%emt 0:00:36]} 5. Nf3 {[%emt 0:00:11]} Qxe4+ {[%emt 0:00:22]} 6. Be2 {[%emt 0:00:12]} Be7 {[%emt 0:03:32]} 7. Nc3 {[%emt 0:02:28]} Qf5 {[%emt 0:02:43]} 8. O-O {[%emt 0:02:33]} Qd7 {[%emt 0:07:43]} 9. Re1 {[%emt 0:01:47]} a6 {[%emt 0:04:50]} 10. Bg5 {[%emt 0:03:39]} O-O {[%emt 0:02:20]} 11. Bd3 {[%emt 0:01:50]} c6 {[%emt 0:07:38]} 12. Qe2 {[%emt 0:03:43]} Bd8 {[%emt 0:00:54]} 13. Ne4 {[%emt 0:01:05]} Nd5 {[%emt 0:02:13]} 14. c4 {[%emt 0:03:05]} f5 {[%emt 0:00:45]} 15. cxd5 {[%emt 0:02:35]} fxe4 {[%emt 0:00:13]} 16. Qxe4 {[%emt 0:00:07]} g6 {[%emt 0:01:56]} 17. Bh6 {[%emt 0:00:36]} Rf7 {[%emt 0:02:30]} 18. Qe8+ {[%emt 0:00:10]} 1-0

[Event "22nd Ruzomberok Open 2019"]
[Site "Ruzomberok"]
[Date "2019.06.29"]
[Round "1.7"]
[White "Korenova, Simona"]
[Black "Pniaczek, Marek"]
[Result "0-1"]
[ECO "E62"]
[WhiteElo "1764"]
[BlackElo "2276"]
[Annotator "NA"]
[PlyCount "118"]
[EventDate "2019.06.29"]
[EventType "swiss"]
[EventCountry "SVK"]
[SourceTitle "playchess.com"]
[Source "ChessBase"]
[SourceQuality "1"]
[TimeControl "40/5400+30:1800+30"]

1. c4 {[%emt 0:00:00]} Nf6 {[%emt 0:00:00]} 2. Nc3 {[%emt 0:00:00]} g6 {[%emt 0:00:00]} 3. g3 {[%emt 0:00:05]} Bg7 {[%emt 0:00:45]} 4. Bg2 {[%emt 0:00:48]} O-O {[%emt 0:00:31]} 5. Nf3 {[%emt 0:00:55]} d6 {[%emt 0:00:51]} 6. O-O {[%emt 0:00:31]} Nc6 {[%emt 0:01:35]} 7. d4 {[%emt 0:01:05]} Bf5 {[%emt 0:00:15]} 8. a3 {[%emt 0:02:19]} Qd7 {[%emt 0:08:10]} 9. b4 {[%emt 0:06:21]} e5 {[%emt 0:11:39]} 10. dxe5 {[%emt 0:09:28]} Ng4 {[%emt 0:01:17]} 11. Bb2 {[%emt 0:02:23]} Ngxe5 {[%emt 0:04:51]} 12. Nxe5 {[%emt 0:04:11]} Nxe5 {[%emt 0:00:25]} 13. Qb3 {[%emt 0:04:53]} Bh3 {[%emt 0:12:08]} 14. Rfd1 {[%emt 0:06:19]} Bxg2 {[%emt 0:01:10]} 15. Kxg2 {[%emt 0:00:06]} Rae8 {[%emt 0:08:10]} 16. b5 {[%emt 0:10:15]} Qg4 {[%emt 0:03:36]} 17. Nd5 {[%emt 0:09:14]} Qe4+ {[%emt 0:07:45]} 18. Kg1 {[%emt 0:05:32]} Qxe2 {[%emt 0:00:06]} 19. Bxe5 {[%emt 0:02:08]} Bxe5 {[%emt 0:01:27]} 20. Ra2 {[%emt 0:04:38]} Qg4 {[%emt 0:04:07]} 21. Re1 {[%emt 0:06:16]} Kg7 {[%emt 0:03:14]} 22. Rae2 {[%emt 0:03:56]} c6 {[%emt 0:00:42]} 23. bxc6 {[%emt 0:01:46]} bxc6 {[%emt 0:00:04]} 24. Nb4 {[%emt 0:00:45]} Qd7 {[%emt 0:04:56]} 25. Qd3 {[%emt 0:02:59]} Bb2 {[%emt 0:10:03]} 26. Rxe8 {[%emt 0:03:13]} Rxe8 {[%emt 0:00:12]} 27. Rxe8 {[%emt 0:01:37]} Qxe8 {[%emt 0:00:04]} 28. Qxd6 {[%emt 0:00:42]} Bxa3 {[%emt 0:00:27]} 29. Qd4+ {[%emt 0:00:24]} Kg8 {[%emt 0:01:17]} 30. Nc2 {[%emt 0:01:24]} c5 {[%emt 0:02:17]} 31. Qa1 {[%emt 0:01:59]} Bb4 {[%emt 0:00:42]} 32. Qxa7 {[%emt 0:00:34]} Qe5 {[%emt 0:02:28]} 33. Qa4 {[%emt 0:03:25]} Bc3 {[%emt 0:01:36]} 34. Ne3 {[%emt 0:01:45]} Bd4 {[%emt 0:02:09]} 35. Qa8+ {[%emt 0:03:32]} Kg7 {[%emt 0:00:04]} 36. Qd5 {[%emt 0:00:39]} Qe7 {[%emt 0:00:12]} 37. Nc2 {[%emt 0:00:59]} Bf6 {[%emt 0:02:27]} 38. Kg2 {[%emt 0:01:04]} Qe2 {[%emt 0:01:52]} 39. Ne3 {[%emt 0:00:36]} Bd4 {[%emt 0:00:38]} 40. Qf3 {[%emt 0:00:29]} Qd2 {[%emt 0:04:39]} 41. Nd5 {[%emt 0:05:29]} Qa2 {[%emt 0:03:04]} 42. Nb6 {[%emt 0:03:59]} Qa6 {[%emt 0:00:33]} 43. Qb3 {[%emt 0:02:09]} Qb7+ {[%emt 0:00:39]} 44. Kg1 {[%emt 0:00:28]} h5 {[%emt 0:01:47]} 45. h4 {[%emt 0:01:29]} Qe4 {[%emt 0:01:06]} 46. Qd1 {[%emt 0:01:14]} Qf5 {[%emt 0:00:34]} 47. Qe1 {[%emt 0:01:15]} Qf3 {[%emt 0:00:43]} 48. Kf1 {[%emt 0:01:52]} Qb3 {[%emt 0:01:50]} 49. Nd7 {[%emt 0:02:44]} Qxc4+ {[%emt 0:00:11]} 50. Kg1 {[%emt 0:00:10]} Qb3 {[%emt 0:03:05]} 51. Kh2 {[%emt 0:03:35]} Qd5 {[%emt 0:01:17]} 52. Qe7 {[%emt 0:01:12]} Qf3 {[%emt 0:00:25]} 53. Qe1 {[%emt 0:05:43]} Qf5 {[%emt 0:02:14]} 54. Nb6 {[%emt 0:01:22]} Bxf2 {[%emt 0:00:34]} 55. Qe7 {[%emt 0:01:20]} Bd4 {[%emt 0:00:58]} 56. Nd7 {[%emt 0:00:58]} Qf2+ {[%emt 0:00:08]} 57. Kh3 {[%emt 0:00:13]} Qf1+ {[%emt 0:00:03]} 58. Kh2 {[%emt 0:00:07]} Qg1+ {[%emt 0:00:06]} 59. Kh3 {[%emt 0:00:04]} Qh1# 0-1

[Event "22nd Ruzomberok Open 2019"]
[Site "Ruzomberok"]
[Date "2019.06.29"]
[Round "1.8"]
[White "Karas, Marek"]
[Black "Piecka, Juraj"]
[Result "1-0"]
[ECO "D01"]
[WhiteElo "2268"]
[BlackElo "1761"]
[Annotator "NA"]
[PlyCount "87"]
[EventDate "2019.06.29"]
[EventType "swiss"]
[EventCountry "SVK"]
[SourceTitle "playchess.com"]
[Source "ChessBase"]
[SourceQuality "1"]
[TimeControl "40/5400+30:1800+30"]

1. Nc3 d5 {[%emt 0:04:56]} 2. d4 {[%emt 0:00:00]} Nf6 {[%emt 0:00:36]} 3. Bg5 {[%emt 0:00:28]} h6 {[%emt 0:05:13]} 4. Bh4 {[%emt 0:00:30]} g6 {[%emt 0:00:54]} 5. e3 {[%emt 0:01:31]} Bg7 {[%emt 0:00:15]} 6. Nf3 {[%emt 0:02:03]} O-O {[%emt 0:02:02]} 7. Bd3 {[%emt 0:01:13]} Kh7 {[%emt 0:03:20]} 8. O-O {[%emt 0:03:15]} b6 {[%emt 0:01:30]} 9. Bxf6 {[%emt 0:05:45]} exf6 {[%emt 0:02:50]} 10. e4 {[%emt 0:00:30]} c6 {[%emt 0:04:03]} 11. exd5 {[%emt 0:00:30]} cxd5 {[%emt 0:00:04]} 12. Re1 {[%emt 0:01:00]} Ba6 {[%emt 0:05:39]} 13. Bxa6 {[%emt 0:00:51]} Nxa6 {[%emt 0:00:01]} 14. Qe2 {[%emt 0:01:23]} Nb4 {[%emt 0:11:27]} 15. a3 {[%emt 0:00:21]} Nc6 {[%emt 0:00:47]} 16. Qb5 {[%emt 0:00:35]} Ne7 {[%emt 0:06:09]} 17. Re2 {[%emt 0:00:22]} a6 {[%emt 0:09:47]} 18. Qb3 {[%emt 0:02:26]} Ra7 {[%emt 0:13:41]} 19. Rae1 {[%emt 0:00:32]} Rd7 {[%emt 0:14:11]} 20. Qa4 {[%emt 0:00:09]} Ra7 {[%emt 0:01:04]} 21. Nb5 {[%emt 0:00:17]} Rd7 {[%emt 0:02:10]} 22. Qxa6 {[%emt 0:00:14]} Nc6 {[%emt 0:02:21]} 23. Nc3 {[%emt 0:00:44]} f5 {[%emt 0:01:19]} 24. Qd3 {[%emt 0:00:30]} Re7 {[%emt 0:03:57]} 25. Rxe7 {[%emt 0:01:00]} Nxe7 {[%emt 0:00:01]} 26. Qb5 {[%emt 0:00:18]} Qd6 {[%emt 0:00:41]} 27. Qb4 {[%emt 0:00:35]} Qxb4 {[%emt 0:00:27]} 28. axb4 {[%emt 0:00:02]} Nc6 {[%emt 0:00:30]} 29. Nxd5 {[%emt 0:00:13]} Nxd4 {[%emt 0:00:14]} 30. Nxd4 {[%emt 0:00:07]} Bxd4 {[%emt 0:00:07]} 31. c3 {[%emt 0:00:11]} Rd8 {[%emt 0:00:47]} 32. Rd1 {[%emt 0:01:29]} Bg7 {[%emt 0:00:07]} 33. Kf1 {[%emt 0:00:25]} b5 {[%emt 0:01:11]} 34. Ke2 {[%emt 0:01:50]} h5 {[%emt 0:01:14]} 35. Nc7 {[%emt 0:00:22]} Rb8 {[%emt 0:00:56]} 36. Rd5 {[%emt 0:00:13]} Rb7 {[%emt 0:00:23]} 37. Nxb5 {[%emt 0:00:10]} Re7+ {[%emt 0:00:10]} 38. Kd1 {[%emt 0:00:13]} Bf6 {[%emt 0:01:36]} 39. Nd4 {[%emt 0:00:27]} Ra7 {[%emt 0:00:12]} 40. b5 {[%emt 0:00:21]} Ra1+ {[%emt 0:00:08]} 41. Kc2 {[%emt 0:30:13]} Ra8 {[%emt 0:06:20]} 42. Nc6 {[%emt 0:00:00]} Rc8 {[%emt 0:13:53]} 43. Rd6 {[%emt 0:00:00]} Kg7 {[%emt 0:00:43]} 44. b6 {[%emt 0:00:00]} 1-0

[Event "22nd Ruzomberok Open 2019"]
[Site "Ruzomberok"]
[Date "2019.06.29"]
[Round "1.9"]
[White "Mudron, Jan"]
[Black "Sarkozy, Ladislav"]
[Result "0-1"]
[ECO "E32"]
[WhiteElo "1756"]
[BlackElo "2227"]
[Annotator "NA"]
[PlyCount "72"]
[EventDate "2019.06.29"]
[EventType "swiss"]
[EventCountry "SVK"]
[SourceTitle "playchess.com"]
[Source "ChessBase"]
[SourceQuality "1"]
[TimeControl "40/5400+30:1800+30"]

1. d4 {[%emt 0:00:00]} Nf6 {[%emt 0:00:03]} 2. c4 {[%emt 0:00:00]} e6 {[%emt 0:00:26]} 3. Nc3 {[%emt 0:00:41]} Bb4 {[%emt 0:00:30]} 4. Qc2 {[%emt 0:00:48]} O-O {[%emt 0:02:29]} 5. a3 {[%emt 0:06:05]} Bxc3+ {[%emt 0:00:36]} 6. Qxc3 {[%emt 0:00:08]} b6 {[%emt 0:00:24]} 7. Bg5 {[%emt 0:03:12]} Bb7 {[%emt 0:01:19]} 8. f3 {[%emt 0:10:49]} d5 {[%emt 0:03:53]} 9. e3 {[%emt 0:03:52]} Nbd7 {[%emt 0:02:16]} 10. Bd3 {[%emt 0:01:45]} h6 {[%emt 0:02:25]} 11. Bh4 {[%emt 0:00:49]} Rc8 {[%emt 0:00:54]} 12. Ne2 {[%emt 0:00:55]} c5 {[%emt 0:00:46]} 13. Bg3 {[%emt 0:21:04]} cxd4 {[%emt 0:13:46]} 14. Qxd4 {[%emt 0:00:48]} dxc4 {[%emt 0:02:36]} 15. Bc2 {[%emt 0:01:31]} Re8 {[%emt 0:02:21]} 16. e4 {[%emt 0:01:44]} e5 {[%emt 0:00:51]} 17. Qd1 {[%emt 0:05:57]} Nc5 {[%emt 0:03:15]} 18. O-O {[%emt 0:00:44]} Nh5 {[%emt 0:02:18]} 19. Qxd8 {[%emt 0:03:18]} Rcxd8 {[%emt 0:00:12]} 20. Rfd1 {[%emt 0:02:07]} Nxg3 21. hxg3 {[%emt 0:04:42]} h5 {[%emt 0:01:25]} 22. Rxd8 {[%emt 0:02:02]} Rxd8 {[%emt 0:00:08]} 23. Rd1 {[%emt 0:00:58]} Rxd1+ {[%emt 0:03:50]} 24. Bxd1 {[%emt 0:00:02]} Nd3 {[%emt 0:03:53]} 25. b3 {[%emt 0:05:19]} cxb3 {[%emt 0:00:07]} 26. Bxb3 {[%emt 0:00:02]} Nc5 {[%emt 0:00:09]} 27. Bc4 {[%emt 0:02:33]} Ba6 {[%emt 0:00:51]} 28. Bxa6 {[%emt 0:00:20]} Nxa6 {[%emt 0:00:01]} 29. Nc3 {[%emt 0:01:08]} Nc7 {[%emt 0:00:07]} 30. a4 {[%emt 0:01:53]} Kf8 {[%emt 0:00:08]} 31. Kf2 {[%emt 0:00:07]} Ke7 {[%emt 0:00:08]} 32. Ke3 {[%emt 0:00:44]} Kd6 {[%emt 0:00:10]} 33. f4 {[%emt 0:02:00]} Kc5 {[%emt 0:01:10]} 34. f5 {[%emt 0:02:06]} f6 {[%emt 0:00:43]} 35. Nd5 {[%emt 0:03:22]} Nxd5+ {[%emt 0:00:00]} 36. exd5 {[%emt 0:01:30]} Kd6 {[%emt 0:00:00]} 0-1